[Event "Israeli Championship 2022"]
[Site "Yosiah Arad"]
[Date "2022.12.07"]
[Round "3.13"]
[White "Shimshovich, Asaf"]
[Black "Erenberg, Ariel"]
[Result "0-1"]
[ECO "E04"]
[WhiteElo "1941"]
[BlackElo "2514"]
[Annotator "TA"]
[PlyCount "66"]
[EventDate "2022.12.05"]
[EventType "swiss"]
[EventCountry "ISR"]
[SourceTitle "playchess.com"]
[Source "ChessBase"]
[SourceQuality "1"]
[TimeControl "40/5400+30:1800+30"]

{[%evp 14,66,49,47,47,32,37,45,37,66,54,45,39,17,42,0,0,0,0,0,0,0,0,-3,2,-33,-20,-33,-7,-45,-24,-28,0,-10,-7,-109,-106,-152,-61,-84,-97,-141,-147,-156,-163,-249,-256,-237,-209,-428,-428,-428,-428,-608,-581]} 1. d4 {[%emt 0:00:05]} Nf6 {[%emt 0:00:22]} 2. c4 {[%emt 0:00:07]} e6 {[%emt 0:00:05]} 3. g3 {[%emt 0:00:25]} d5 {[%emt 0:00:37]} 4. Nf3 {[%emt 0:00:07]} dxc4 {[%emt 0:03:23]} 5. Bg2 {[%emt 0:02:21]} a6 {[%emt 0:00:12]} 6. O-O {[%emt 0:00:41]} Nc6 {[%emt 0:00:07]} 7. e3 {[%emt 0:03:18]} Rb8 {[%emt 0:00:38]} 8. Nfd2 {[%emt 0:01:34]} e5 {[%emt 0:00:11] E04: Open Catalan: 5 Nf3.} 9. Bxc6+ {[%emt 0:00:53]} bxc6 {[%emt 0:00:05]} 10. dxe5 {[%emt 0:00:13]} Ng4 {[%emt 0:00:11] White is slightly better.} 11. Nxc4 {[%emt 0:00:24] Strongly threatening Qxd8+.} Be6 {[%emt 0:00:27]} 12. Nbd2 {[%emt 0:19:57]} Bb4 {[%emt 0:01:03]} 13. Qe2 {[%emt 0:07:51]} h5 {[%emt 0:02:03][%cal Bh7h5,Bh5h4][%mdl 32] [#]} (13... Bxd2 {simplifies} 14. Bxd2 h5 15. f3 h4) 14. Rd1 $146 {[%emt 0:13:00]} ({Predecessor:} 14. f3 Bxd2 15. Bxd2 h4 16. fxg4 hxg3 17. b3 Rxh2 18. Qf3 Rxd2 19. Nxd2 Qxd2 20. Qxg3 {½-½ (35) Hilby,C (2420)-Matsenko,S (2533) Irving 2018}) 14... Qd5 {[%emt 0:11:48] And now ...h4 would win.} 15. b3 {[%emt 0:17:20]} Nxe5 {[%emt 0:05:45]} 16. Nxe5 {[%emt 0:02:10]} Qxe5 {[%emt 0:00:56]} 17. Rb1 {[%emt 0:00:23]} h4 {[%emt 0:04:33]} 18. Bb2 $132 {[%emt 0:00:37][%mdl 2048] White is not keeping still} (18. Qxa6 $2 hxg3 19. Qxc6+ Kf8 $19) 18... Qg5 {[%emt 0:06:06]} (18... Qh5 {simplifies} 19. Qxh5 Rxh5 20. Bxg7 hxg3 21. hxg3 Ke7) 19. Nf1 {[%emt 0:05:14]} ({Don't play} 19. Qxa6 hxg3 20. Qxc6+ Kf8 $17) (19. Nf3 $5 {[%cal Rf3g5]} Bg4 20. Nxg5 (20. Qxa6 $2 {loses.} Bxf3 21. Qa7 O-O $19) 20... Bxe2 21. Rd4 $11 (21. Bxg7 Rg8 $15)) 19... Bd6 {[%emt 0:08:16]} 20. Qf3 {[%emt 0:09:37]} hxg3 {[%emt 0:09:09]} 21. fxg3 {[%emt 0:00:26]} (21. Qxc6+ {is interesting.} Bd7 22. Qe4+ Kf8 23. Nxg3 Qh6 24. Qg2) 21... O-O {[%emt 0:02:17]} (21... c5 {looks sharper.} 22. Nd2 Bg4 23. Qe4+ Kf8) 22. Qxc6 {[%emt 0:03:14]} Rfe8 {[%emt 0:02:36]} 23. Rd2 {[%emt 0:01:29]} Bf5 {[%emt 0:00:37]} 24. Rbd1 {[%emt 0:02:17]} (24. Rc1 $1 $11) 24... Be4 $17 {[%emt 0:00:16][%mdl 1024] Black has strong compensation. This pair of bishops is nice.} 25. Qc4 {[%emt 0:02:27]} ({Better is} 25. Qc1) 25... Rb4 {[%emt 0:03:46] Really sharp!} (25... Qh5 $1 $17 {[%cal Rh5f3] White must now prevent ...Qf3.} 26. Qe2 Bf3) 26. Qe2 {[%emt 0:00:36]} Rb5 {[%emt 0:00:17] Black is much more active.} 27. Rd4 {[%emt 0:04:11] [#]} Rf5 $1 {[%emt 0:01:14]} 28. Rxe4 {[%emt 0:00:56]} Rxe4 {[%emt 0:00:05]} 29. Rd4 {[%emt 0:00:59] [#]} (29. Qxa6 $142 Qg4 30. Rd5) 29... Rxd4 $1 $19 {[%emt 0:00:51]} 30. Bxd4 {[%emt 0:00:06]} Qh5 {[%emt 0:02:59]} 31. Qxa6 {[%emt 0:00:25]} (31. Qxh5 {is the only way for White.} Rxh5 32. Kf2) 31... Qf3 {[%emt 0:00:13] ...Qf2+ is the strong threat. Black is clearly winning.} 32. e4 {[%emt 0:00:50]} Qxe4 {[%emt 0:00:36]} 33. Bf2 {[%emt 0:01:21] [#]} (33. Qc4 $142) 33... Rxf2 $1 {[%emt 0:06:11][%mdl 512] Weighted Error Value: White=0.42/Black=0.10 (very precise)} 0-1

[Event "Israeli Championship 2022"]
[Site "Yosiah Arad"]
[Date "2022.12.07"]
[Round "3.14"]
[White "Sitbon, Itay"]
[Black "Shohat, Yotam"]
[Result "0-1"]
[ECO "E71"]
[WhiteElo "2092"]
[BlackElo "2294"]
[Annotator "TA"]
[PlyCount "62"]
[EventDate "2022.12.05"]
[EventType "swiss"]
[EventCountry "ISR"]
[SourceTitle "playchess.com"]
[Source "ChessBase"]
[SourceQuality "1"]
[TimeControl "40/5400+30:1800+30"]

{[%evp 11,62,39,61,43,60,-41,-11,-8,-33,-59,-52,-81,-73,-129,-131,-132,-120,-145,-138,-218,-219,-181,-101,-95,-97,-105,-105,-95,-117,-93,-91,-260,-254,-238,-254,-239,-196,-465,-446,-436,-430,-619,-395,-981,-913,-1723,-1445,-5181,-2672,-29985,-29982,-29991,-29992]} 1. d4 {[%emt 0:00:03]} Nf6 {[%emt 0:00:05]} 2. c4 {[%emt 0:00:01]} g6 {[%emt 0:00:06]} 3. Nc3 {[%emt 0:00:04]} Bg7 {[%emt 0:00:04]} 4. e4 {[%emt 0:00:05]} O-O {[%emt 0:00:06]} 5. h3 {[%emt 0:00:03]} d6 {[%emt 0:00:26]} 6. Be3 {[%emt 0:00:02]} Na6 {[%emt 0:01:14]} 7. g4 {[%emt 0:00:20] E71: King's Indian: 4 e4 d6 5 h3.} c5 {[%emt 0:03:31]} 8. d5 {[%emt 0:00:27]} (8. Nge2 $14) 8... e6 $1 $15 {[%emt 0:00:28]} 9. Nge2 {[%emt 0:04:59] The position is equal.} exd5 {[%emt 0:07:55]} 10. cxd5 {[%emt 0:00:26]} b5 $1 {[%emt 0:06:53][%cal Bb7b5,Bb5b4][%mdl 32] [#] White must now prevent ...b4.} 11. g5 $146 {[%emt 0:01:29] Inhibits b4.} (11. Nxb5 Nxe4 12. Bg2 Qa5+ 13. Nbc3 Nxc3 14. Nxc3 Bxc3+ 15. bxc3 Qxc3+ 16. Kf1 Nb4 $17) ({Predecessor:} 11. Ng3 b4 12. Na4 Qa5 13. Bc4 Re8 14. f3 Nd7 15. Rc1 Nb6 16. Nxb6 axb6 17. Qe2 {1-0 (41) Runets,I (2176)-Alexikov,A (2223) Chess.com INT 2022}) 11... Nh5 {[%emt 0:05:57] And now ...b4 would win.} 12. Qd2 {[%emt 0:10:38]} (12. Nxb5 $142 Nc7 13. Nxc7 Qxc7 14. Rb1 (14. Nc3 Qe7 $15)) 12... b4 $17 {[%emt 0:03:44]} 13. Nd1 {[%emt 0:00:24]} f5 {[%emt 1:06:31]} 14. gxf6 {[%emt 0:01:47]} Qxf6 {[%emt 0:00:00]} 15. Rg1 {[%emt 0:02:16]} (15. Bg2 $17) 15... Qe7 $19 {[%emt 0:00:00]} 16. Bg2 {[%emt 0:04:11]} c4 {[%emt 0:00:00]} (16... Nc7 $19 17. a3 a5) 17. Rc1 $17 {[%emt 0:05:26]} Nc5 {[%emt 0:00:00]} 18. Rxc4 {[%emt 0:04:15]} Ba6 $36 {[%emt 0:00:00][%mdl 2048] Keeping White busy. Black has more active pieces. The white rooks are badly placed.} 19. Rxc5 {[%emt 0:01:31]} dxc5 {[%emt 0:00:00]} 20. d6 {[%emt 0:01:23]} Qd7 {[%emt 0:03:30] Threatens to win with ...Rae8.} 21. e5 $2 {[%emt 0:10:16] [#] White does not recover from this.} (21. Bf3 $17 Rxf3 22. Qd5+ Kh8 23. Qxa8+ Rf8 24. Qd5) 21... Rae8 $19 {[%emt 0:00:00][%cal Ba8e8,Be8e5,Be5e4,Be4e2][%mdl 32]} 22. f4 {[%emt 0:01:04]} Bxe2 {[%emt 0:00:00]} 23. Kxe2 {[%emt 0:00:52]} Kh8 {[%emt 0:00:00] Dancing on a razor blade.} 24. Nf2 $2 {[%emt 0:01:17] Inhibits g5.} (24. Ke1 $2 g5 $19) (24. Be4) 24... g5 {[%emt 0:00:00]} ({Weaker is} 24... Bxe5 25. fxe5 Rxe5 26. Nd3 Nf4+ 27. Nxf4 (27. Kd1 Nxd3 28. Qxd3 Rf6 $11) 27... Rxf4 28. Kd1 Rxe3 29. Qxe3 $16) 25. fxg5 {[%emt 0:06:40]} Rxe5 {[%emt 0:00:00]} (25... Bxe5 $2 {perishes.} 26. Kd1 $19) 26. Ne4 {[%emt 0:01:27]} (26. Be4 $142 Rxf2+ 27. Bxf2 Rxe4+ 28. Kd1) 26... Rfe8 {[%emt 0:00:00][%cal Oh5g3] Hoping for ...Ng3+!} 27. Qd3 $2 {[%emt 0:02:47] [#]} (27. Kd1 Ng3 28. Nxc5) 27... Ng3+ $3 {[%emt 0:00:00][%mdl 512]} 28. Kd2 {[%emt 0:02:02]} (28. Nxg3 Rxe3+) 28... Nxe4+ {[%emt 0:00:00]} 29. Bxe4 {[%emt 0:01:22]} Rxe4 {[%emt 0:00:00]} 30. Bxc5 {[%emt 0:00:05]} Bxb2 {[%emt 0:00:00]} 31. Bf2 {[%emt 0:03:03]} Re2+ {[%emt 0:00:00] Weighted Error Value: White=1.24/Black=0.46} 0-1

[Event "Israeli Championship 2022"]
[Site "Yosiah Arad"]
[Date "2022.12.07"]
[Round "3.15"]
[White "Ben-Menachem, Itzhak"]
[Black "Uritsky, Yonathan"]
[Result "1/2-1/2"]
[ECO "D30"]
[WhiteElo "2291"]
[BlackElo "2216"]
[Annotator "TA"]
[PlyCount "45"]
[EventDate "2022.12.05"]
[EventType "swiss"]
[EventCountry "ISR"]
[SourceTitle "playchess.com"]
[Source "ChessBase"]
[SourceQuality "1"]
[TimeControl "40/5400+30:1800+30"]

{[%evp 17,45,29,33,9,64,70,63,0,0,0,0,0,19,17,29,17,15,17,20,21,17,20,18,6,8,0,0,0,8,0]} 1. d4 {[%emt 0:00:03]} Nf6 {[%emt 0:00:07]} 2. c4 {[%emt 0:00:04]} e6 {[%emt 0:00:12]} 3. g3 {[%emt 0:00:07]} c5 {[%emt 0:00:11]} 4. Nf3 {[%emt 0:01:12]} cxd4 {[%emt 0:00:08]} 5. Nxd4 {[%emt 0:00:01]} Nc6 {[%emt 0:00:30]} 6. Bg2 {[%emt 0:00:12]} d5 {[%emt 0:00:42]} 7. O-O {[%emt 0:00:46]} Bc5 {[%emt 0:01:17]} 8. Nb3 {[%emt 0:04:00]} Bb6 {[%emt 0:01:52]} 9. cxd5 {[%emt 0:00:47]} exd5 {[%emt 0:04:27] Nowadays more popular than 9...Nxd5.} 10. Nc3 {[%emt 0:02:36][%cal Oc1g5] D30: Queen's Gambit Declined: Systems without Nc3.} Be6 {[%emt 0:08:55]} (10... d4 $11 11. Na4 O-O) 11. Bg5 $14 {[%emt 0:16:31]} O-O {[%emt 0:02:51] [#]} 12. Bxd5 {[%emt 0:10:09]} Bxd5 $11 {[%emt 0:03:13]} 13. Bxf6 {[%emt 0:00:36]} Bxb3 $1 {[%emt 0:02:47] This pair of bishops is nice.} 14. Bxd8 {[%emt 0:08:43]} Bxd1 {[%emt 0:00:04]} 15. Bxb6 {[%emt 0:00:05] Hoping for Bc5.} Bxe2 {[%emt 0:00:15]} 16. Nxe2 {[%emt 0:00:22] [#] Strongly threatening Be3.} axb6 {[%emt 0:00:02] The position is equal.} 17. Rfd1 {[%emt 0:00:34]} Rfd8 {[%emt 0:00:39] Against Rd7} 18. Nc3 {[%emt 0:00:18] [#]} g6 $146 {[%emt 0:01:40]} ({Predecessor:} 18... Kf8 19. Nd5 Rd7 20. a3 Rad8 21. Ne3 Rxd1+ 22. Rxd1 Rxd1+ 23. Nxd1 Ke7 24. Kg2 Kd6 {1-0 (63) Gelis,P (1967)-Mahoney,I Toronto 2010}) 19. Kg2 {[%emt 0:12:08]} Kg7 {[%emt 0:00:31]} 20. h4 {[%emt 0:03:30]} h5 {[%emt 0:01:17]} 21. Kf3 {[%emt 0:07:30]} Nd4+ {[%emt 0:04:24]} 22. Kg2 {[%emt 0:01:08]} Nc6 {[%emt 0:07:25]} 23. Kf3 {[%emt 0:01:41] Weighted Error Value: White=0.11 (very precise) /Black=0.09 (flawless)} 1/2-1/2

[Event "Israeli Championship 2022"]
[Site "Yosiah Arad"]
[Date "2022.12.07"]
[Round "3.16"]
[White "Barak, Gil"]
[Black "Poleg, Matan"]
[Result "1-0"]
[ECO "D00"]
[WhiteElo "2147"]
[BlackElo "2291"]
[Annotator "TA"]
[PlyCount "73"]
[EventDate "2022.12.05"]
[EventType "swiss"]
[EventCountry "ISR"]
[SourceTitle "playchess.com"]
[Source "ChessBase"]
[SourceQuality "1"]
[TimeControl "40/5400+30:1800+30"]

{[%evp 9,73,-23,-20,-16,-23,-38,-35,-29,0,-1,8,-39,-23,-33,-31,-44,-23,-24,-16,-43,-22,-32,-27,-32,-37,-60,-36,-79,-42,-39,-45,-54,-55,-66,-41,-37,-5,0,-6,-3,-3,-15,-15,-12,-14,-12,35,27,78,84,79,77,179,191,282,278,265,276,597,632,566,616,591,543,5297,1758]} 1. d4 {[%emt 0:00:03]} Nf6 {[%emt 0:00:25]} 2. Nc3 {[%emt 0:00:08]} d5 {[%emt 0:00:30]} 3. Bf4 {[%emt 0:00:08]} e6 {[%emt 0:01:17]} 4. e3 {[%emt 0:00:18]} Bb4 {[%emt 0:00:25]} 5. Bd3 {[%emt 0:00:29]} c5 {[%emt 0:00:37]} 6. dxc5 {[%emt 0:00:38] D00: 1 d4 d5: Unusual lines.} Nbd7 {[%emt 0:03:42]} 7. Nge2 {[%emt 0:07:02]} a6 {[%emt 0:08:33]} 8. Bg3 {[%emt 0:13:13] Black is slightly better.} Nxc5 {[%emt 0:07:21] [#]} 9. a3 $146 {[%emt 0:03:01]} ({Predecessor:} 9. O-O Ba5 10. a3 Bd7 11. b4 Nxd3 12. Qxd3 Bb6 13. Bh4 Bc6 14. Rad1 O-O 15. e4 dxe4 16. Nxe4 Bxe4 {0-1 (16) Vogt,J-Wessel,R freechess.de 2021}) 9... Nxd3+ {[%emt 0:03:21]} 10. Qxd3 {[%emt 0:00:27]} (10. cxd3 $11 Bd6 11. O-O) 10... Be7 $15 {[%emt 0:00:37]} 11. O-O {[%emt 0:03:21]} Bd7 {[%emt 0:01:17]} 12. Nd4 {[%emt 0:03:11]} Nh5 {[%emt 0:03:13]} 13. e4 {[%emt 0:03:27]} dxe4 {[%emt 0:00:31]} 14. Nxe4 {[%emt 0:01:45]} Nxg3 {[%emt 0:00:14]} 15. Qxg3 {[%emt 0:01:04]} O-O {[%emt 0:00:13]} 16. Rad1 {[%emt 0:05:20]} Qb6 {[%emt 0:03:22]} 17. b4 {[%emt 0:11:34]} Ba4 {[%emt 0:07:08]} 18. Qe3 {[%emt 0:09:09]} Qc7 {[%emt 0:12:16]} 19. Rd3 {[%emt 0:01:56]} Rfd8 {[%emt 0:02:13]} (19... Bxc2 $2 20. Rc1 $18) 20. Rc3 {[%emt 0:03:19]} Qd7 {[%emt 0:00:15]} 21. Nf3 {[%emt 0:01:12]} Rac8 {[%emt 0:02:02]} (21... Bb5 $5 {[%cal Rb5f1]} 22. Re1 f6 $15) 22. Ne5 $1 {[%emt 0:10:22]} Rxc3 {[%emt 0:02:04]} 23. Nxc3 {[%emt 0:00:44] Pair of Knights!} Qe8 {[%emt 0:00:25]} 24. Nxa4 {[%emt 0:01:32]} Qxa4 {[%emt 0:00:03]} 25. Qf3 {[%emt 0:07:53][%csl LRb7,LRf7]} (25. Qb6 {simplifies} Bf6 26. Ng4 Qd7 27. Nxf6+ gxf6 28. c4) 25... Bf6 {[%emt 0:01:22]} (25... Qxc2 $2 26. Qxf7+ Kh8 27. Qxe7 $18) 26. Ng4 {[%emt 0:00:25]} Bb2 {[%emt 0:00:36]} 27. Qxb7 {[%emt 0:01:26]} Qb5 {[%emt 0:06:33]} (27... Qxa3 $11 {deserves consideration.} 28. c4 Bc3) 28. Qc7 $14 {[%emt 0:02:13]} (28. Qxb5 {simplifies} axb5 29. Ne3 f5 30. Rb1) 28... Qb8 {[%emt 0:00:24] [#]} (28... Rf8 $1 $11 {remains equal.}) 29. Qa5 $1 $16 {[%emt 0:02:04] White is more active.} Qc8 {[%emt 0:01:41]} 30. h3 $40 {[%emt 0:02:31][%mdl 128] White attacks with force.} (30. Ne3 $5 {[%cal Rc2c4]}) 30... Rd2 {[%emt 0:07:04]} (30... f5 $16) 31. b5 $18 {[%emt 0:02:48][%cal Bb4b5,Bb5a6,Ba6a7][%mdl 32]} Rd5 {[%emt 0:01:02]} (31... Rd7 $142) 32. c4 {[%emt 0:01:14]} ({Much less strong is} 32. Qxa6 Qb8 33. c4 Rd6 $18) 32... Qxc4 {[%emt 0:00:36]} 33. Qxa6 {[%emt 0:00:29] Qa8+ would kill now.} Qd3 $2 {[%emt 0:02:17]} (33... Rd8 {is tougher.} 34. Ne3 Qc5) 34. Ne3 {[%emt 0:01:08] White is clearly winning.} Rd6 {[%emt 0:00:18]} 35. Rd1 {[%emt 0:01:01]} Rxa6 {[%emt 0:04:38]} 36. bxa6 {[%emt 0:01:55][%mdl 64] [#]} Qd4 {[%emt 0:00:59]} 37. a7 {[%emt 0:00:00] Weighted Error Value: White=0.07 (flawless) /Black=0.32} 1-0

[Event "Israeli Championship 2022"]
[Site "Yosiah Arad"]
[Date "2022.12.08"]
[Round "4.1"]
[White "Gorshtein, Ido"]
[Black "Parkhov, Yair"]
[Result "1-0"]
[ECO "E90"]
[WhiteElo "2469"]
[BlackElo "2470"]
[Annotator "TA"]
[PlyCount "127"]
[EventDate "2022.12.05"]
[EventType "swiss"]
[EventCountry "ISR"]
[SourceTitle "playchess.com"]
[Source "ChessBase"]
[SourceQuality "1"]
[TimeControl "40/5400+30:1800+30"]

{[%evp 13,127,27,27,29,31,14,70,50,52,36,53,34,72,55,69,66,68,61,54,50,66,64,87,56,96,97,111,54,117,55,99,103,99,50,47,65,50,62,81,68,63,78,29,41,105,0,0,0,0,0,0,0,0,0,0,0,0,0,0,0,0,0,0,8,0,0,14,22,295,286,286,286,279,279,940,902,898,798,702,504,808,463,472,421,413,372,648,590,1010,1006,983,968,983,876,902,835,635,433,411,397,4133,3108,1817,1571,29979,29980,29980,29981,29980,29981,29983,29984,29989,29988,29988,29989]} 1. c4 {[%emt 0:00:03]} Nf6 {[%emt 0:00:05]} 2. Nc3 {[%emt 0:00:05]} g6 {[%emt 0:00:05]} 3. e4 {[%emt 0:00:23]} d6 {[%emt 0:00:05]} 4. d4 {[%emt 0:00:05]} Bg7 {[%emt 0:00:06]} 5. Nf3 {[%emt 0:01:42]} O-O {[%emt 0:01:00]} 6. h3 {[%emt 0:01:11]} e5 {[%emt 0:01:24]} 7. d5 {[%emt 0:00:10]} Nh5 {[%emt 0:01:08]} 8. g3 {[%emt 0:02:27] E90: King's Indian: Classical: Early deviations and 6 h3.} Na6 {[%emt 0:01:05]} 9. Be2 {[%emt 0:04:39]} Qe8 {[%emt 0:03:20]} (9... Qe7 $11) 10. Nh4 {[%emt 0:04:58] White is slightly better.} Nf6 {[%emt 0:05:26] [#]} 11. g4 $146 {[%emt 0:03:12]} ({Predecessor:} 11. Be3 Nc5 12. Qc2 c6 13. b4 Na6 14. a3 cxd5 15. exd5 Qe7 16. Rd1 b6 17. Qa4 {½-½ (64) Denishev,M (2382)-Atabayev,M (2492) Moscow 2016}) 11... Nd7 {[%emt 0:07:40]} 12. Rg1 {[%emt 0:02:11]} Kh8 {[%emt 0:08:25]} 13. Be3 {[%emt 0:04:53]} Ndc5 {[%emt 0:11:34]} 14. a3 {[%emt 0:07:21]} Qe7 {[%emt 0:04:21] Inhibits b4.} 15. g5 {[%emt 0:01:55]} Nd7 {[%emt 0:10:59]} (15... Bxh3 16. b4 $18) 16. Nf3 {[%emt 0:02:21]} f5 {[%emt 0:00:38]} 17. b4 {[%emt 0:03:36] White is more active.} c5 {[%emt 0:05:02]} 18. Rb1 {[%emt 0:01:44]} Nb6 {[%emt 0:00:20]} 19. h4 {[%emt 0:02:09]} Bd7 {[%emt 0:05:27]} 20. Rh1 {[%emt 0:07:17]} (20. b5 $1 $16 {[%cal Rb5a6]}) 20... Rac8 {[%emt 0:08:03]} (20... f4 $14 21. Bc1 Bg4) 21. Qb3 {[%emt 0:01:22]} (21. b5 $16) 21... cxb4 {[%emt 0:01:58]} 22. axb4 {[%emt 0:00:29]} f4 {[%emt 0:02:11]} 23. Bc1 {[%emt 0:01:56]} (23. Bxb6 $16 axb6 24. h5) 23... Bg4 $14 {[%emt 0:00:07]} 24. Nd2 {[%emt 0:01:50]} Bxe2 {[%emt 0:08:41]} 25. Kxe2 {[%emt 0:00:08]} Qd7 {[%emt 0:00:06]} 26. Kf3 {[%emt 0:06:20]} h5 {[%emt 0:08:43][%csl Gh5][%cal Rd7g4]} 27. gxh6 $1 {[%emt 0:00:20]} Bf6 {[%emt 0:00:31]} 28. Bb2 {[%emt 0:00:43]} Kh7 {[%emt 0:00:42]} (28... Be7 $14) 29. Rbg1 {[%emt 0:01:12]} ({White should try} 29. Nb5 $1 $16) 29... Qc7 $11 {[%emt 0:01:33][%cal Rb6c4]} 30. Nb5 {[%emt 0:09:51]} Nxc4 $1 {[%emt 0:00:08][%mdl 64]} 31. Nxc4 {[%emt 0:00:07]} Qxc4 {[%emt 0:00:04]} 32. Qxc4 {[%emt 0:00:08] Chess con chili.} Rxc4 {[%emt 0:00:04]} 33. Nxd6 {[%emt 0:00:14]} (33. Nxa7 $2 Rxb4 34. Rb1 Rb3+ 35. Kg4 Nc5 $19) 33... Rxb4 {[%emt 0:01:20]} 34. Rb1 {[%emt 0:04:48] Hoping for Ba3.} Rb3+ {[%emt 0:00:05]} 35. Kg4 $1 {[%emt 0:00:16] White wants to play Nc4.} Nc5 {[%emt 0:00:11] Threatens to win with ...Nd3.} ({Don't play} 35... Kxh6 36. Nc4 (36. Bxe5 $2 Bxe5 37. Rxb3 Bxd6 $19) 36... Re8 37. Bxe5 $1 {[%mdl 512]} Rxb1 38. Bxf4+ (38. Rxb1 Bxe5 39. Nxe5 Rxe5 $17) 38... Kh7 39. Rxb1 Rxe4 40. Rxb7+ Kg8 41. Rxa7 $16) 36. Ba1 {[%emt 0:06:00]} (36. Rhc1 {keeps more tension.} b6 37. Ba1 Rxb1 38. Rxb1 Kxh6 39. Kf3) 36... Rxb1 {[%emt 0:03:30]} 37. Rxb1 {[%emt 0:00:03]} Kxh6 {[%emt 0:00:41][%cal Of4f3]} 38. Kf3 {[%emt 0:03:11]} b6 {[%emt 0:00:12]} 39. Bb2 {[%emt 0:05:00]} Nd7 {[%emt 0:01:12]} 40. Rc1 {[%emt 0:01:35] Strongly threatening Rc7.} Be7 $2 {[%emt 0:00:29][%mdl 8192] This move loses the game for Black.} (40... Nc5 $11) 41. Rc7 $1 $18 {[%emt 0:31:36][%csl LRa7,LRd7]} Bxd6 {[%emt 0:03:10]} 42. Rxd7 {[%emt 0:00:00][%mdl 4096] Endgame KRB-KRB} Rf6 {[%emt 0:08:42]} 43. Rxa7 {[%emt 0:00:00] aiming for Kg4.} b5 $2 {[%emt 0:00:09]} (43... g5 44. hxg5+ Kxg5) 44. Kg4 {[%emt 0:00:00]} b4 {[%emt 0:01:12]} 45. f3 {[%emt 0:00:00]} Rf8 {[%emt 0:01:34]} 46. Rd7 {[%emt 0:00:00]} Rf6 {[%emt 0:02:46]} (46... Bb8 $142 47. d6 Re8) 47. Rd8 {[%emt 0:00:00]} Bc7 {[%emt 0:05:12]} 48. Rc8 {[%emt 0:00:00]} Rf7 {[%emt 0:00:30]} 49. Rh8+ {[%emt 0:00:00]} Kg7 $2 {[%emt 0:03:29]} (49... Rh7 50. Ra8 Re7) 50. Ra8 {[%emt 0:00:00]} Kh6 {[%emt 0:04:44]} 51. Ra7 {[%emt 0:07:20] Intending d6 and mate.} Rg7 {[%emt 0:00:09]} 52. Rb7 {[%emt 0:00:05]} Bd6 {[%emt 0:00:26]} 53. Rb6 {[%emt 0:00:19]} Rd7 {[%emt 0:03:07]} 54. h5 {[%emt 0:01:18]} gxh5+ {[%emt 0:00:16]} 55. Kh4 {[%emt 0:00:35]} Kh7 {[%emt 0:02:56]} 56. Kxh5 {[%emt 0:00:10] Black must now prevent Kg5.} Rd8 $2 {[%emt 0:00:31]} (56... Kg8 57. Kg6 Kf8) 57. Rb7+ {[%emt 0:00:30]} Kg8 {[%emt 0:00:06]} 58. Kg6 {[%emt 0:00:38]} Rb8 {[%emt 0:00:12]} 59. Rxb8+ {[%emt 0:01:17] White mates.} Bxb8 {[%emt 0:00:06]} 60. Kf6 {[%emt 0:00:04]} Kf8 {[%emt 0:00:14]} 61. Ke6 {[%emt 0:00:09]} (61. Bxe5 Bxe5+ 62. Kxe5 b3 63. Ke6 b2 64. Ke5 b1=Q 65. Kxf4 Qd3 66. d6 Qxd6+ 67. Ke3 Ke7 68. Kf2 Qd2+ 69. Kg3 Kf6 70. f4 Qe3+ 71. Kg4 Qxe4 72. Kh3 Kf5 73. Kh2 Kxf4 74. Kg1 Kf3 75. Kh1 Kg3+ 76. Kg1 Qg2#) 61... Ke8 {[%emt 0:00:06]} 62. d6 {[%emt 0:00:05]} (62. Bxe5 Bxe5 63. Kf5 {[#]} b3 $1 64. Kxe5 b2 65. Kxf4 b1=Q 66. Ke5 Qb3 67. f4 Qg3 68. Kd4 Qxf4 69. Kd3 Ke7 70. d6+ Kxd6 71. Kd4 Qf2+ 72. Kc4 Qd2 73. e5+ Kxe5 74. Kb5 Qc3 75. Ka4 Kd6 76. Kb5 Qb3+ 77. Ka5 Kc5 78. Ka6 Qb6#) 62... b3 {[%emt 0:00:35]} 63. Bxe5 {[%emt 0:00:07]} Bxd6 {[%emt 0:00:21]} 64. Kxd6 {[%emt 0:00:03] Weighted Error Value: White=0.26 (precise) /Black=0.39} 1-0